{"text_format":"1","workbook":"xlsx","n_sheets":3,"sheets":["Términos y Condiciones","Plantilla","Plantas"],"not_rendered":{"charts":0,"images":0,"macros":1,"external_links":0,"defined_names":3,"comments":1,"pivot_tables":0},"unopened":[],"bounds":{"document_bytes":16777216,"sheet_cells":100000,"rows_first":2000,"rows_last":500,"rows_between":2000,"halvings":0,"cell_chars":16384,"cell_head_chars":4096},"cells_cut":0,"cells_raw":0,"read":"whole","date_system":"1900"}

{"sheet":"Términos y Condiciones","index":0,"n_rows":4,"n_cols":11,"rows_kept":4,"cut":false,"hidden":false,"merged":[[1,10,1,17],[1,1,1,8],[3,10,35,17],[3,1,35,8]]}
[]
[null,"TÉRMINOS Y CONDICIONES PARA EL USO DE ESTE FORMATO",null,null,null,null,null,null,null,null,"CONDICIONES PARA EL DILIGENCIAMIENTO"]
[]
[null,"1. Este formato constituye un documento oficial anexo a la Circular CREG. Es importante que la estructura, número de filas y columnas, conceptos, estructuras de costos y extensión de archivo, del formato presentado, sean iguales a las especificadas en el formato anexo a la Circular. En caso de presentarse diferencias en las especificaciones del archivo presentado por la empresa y el anexo a la Circular, el formato no será aceptado por el Sistema de Información de la CREG ICR-AOM.\n\n2. Este formato solo puede ser modificado por la CREG, basándose en los requisitos técnicos y regulatorios que la Comisión determine pertinentes.\n\n3. Las hojas de cálculo de este formato son propiedad exclusiva de la CREG y están protegidas bajo las leyes de propiedad intelectual y derechos de autor de la República de Colombia, así como por la normativa de la Comunidad Andina de Naciones (CAN). Los agentes y demás usuarios que empleen este formato reconocen y aceptan estos derechos de propiedad intelectual, incluidos los contenidos y cualquier otro elemento incorporado por la CREG en las hojas de cálculo.\n\n4. La CREG no asumirá responsabilidad alguna por los daños de cualquier naturaleza que surjan debido a varias circunstancias, entre ellas: a) la imposibilidad de acceder a la hoja de cálculo, la falta de precisión, veracidad y/o actualización de los contenidos, así como cualquier vicio o defecto que puedan presentar los contenidos transmitidos, difundidos, almacenados o hechos disponibles, a los cuales se acceda mediante la hoja de cálculo; b) la existencia de virus u otros elementos en los contenidos que puedan causar alteraciones en los sistemas informáticos, documentos electrónicos o datos de los agentes y otros usuarios; c) la violación de las leyes colombianas, la buena fe, el orden público, los usos del tráfico de datos, las normas de conducta y este acuerdo de uso, resultante del uso inapropiado de las hojas de cálculo de este formato.",null,null,null,null,null,null,null,null,"1.  Mantenga intacta la estructura original de las hojas, no está permitido modificar la estructura de las hojas, incluyendo filas, columnas, etiquetas, fórmulas y formatos.\n\n2. El formato no debe contener celdas vacías, a excepción de las destinadas a observaciones para cada concepto.\n\n3. La eliminación o inserción de hojas, filas o columnas en el formato no está permitida. Tales modificaciones resultarán en que el Sistema de Información de la CREG ICR-AOM, no acepte el formato.\n\n4. Para cada Planta que opere, el agente debe llenar y enviar un formato único correspondiente a cada período de vigencia. Seleccione la Planta pertinente en la celda fusionada A2:B2, siguiendo la instrucción “-Seleccione la planta del agente a reportar-”.\n\n5. Es necesario incluir el código SICOM de la Planta, al final del nombre del archivo a cargar, reemplazando “COD_PLANTA” en el nombre del archivo (AOM-805-2024-COD_PLANTA.xlsm); los códigos de las Plantas pueden ser consultados en la hoja \"Plantas\" en la columna \"CODIGO SICOM PLANTA\" o lo puede ver en el nombre de la planta seleccionada en la celda combinada \"A2:B2\", antes del símbolo \"mayor que (>)\". El nombre del archivo debe limitarse exclusivamente a incluir la variable mencionada antes de transmitirlo.\n\n6. Para enviar la plantilla con los gastos de la sede administrativa (Back Office), seleccione la opción codificada con el Código de Planta 999999 en la celda fusionada A2:B2, etiquetada como \"999999 > NOMBRE AGENTE - Planta: Back Office\", donde NOMBRE AGENTE, corresponde al nombre del agente que reporta el formato. Adicionalmente, deberá renombrar el archivo, antes de transmitirlo, siguiendo las directrices establecidas en el numeral 6., el nombre del archivo AOM-805-2024-COD_PLANTA.xlsm,  deberá modificarse a AOM-805-2024-999999.xlsm, debido a que “COD_PLANTA” se tendrá que sustituir por el código de planta 999999 correspondiente a Back Office.\n\n7. En caso de encontrar inconsistencias en la hoja \"Plantas\", desde donde se obtienen los valores que puede seleccionar en la celda fusionada A2:B2, donde se indica: “-Seleccione la planta del agente a reportar-”, por favor reportela al correo creg@creg.gov.co.\n\n8. Los datos deben ser ingresados en la hoja titulada \"Plantilla\" y, este nombre de hoja, no debe ser modificado. Cualquier cambio del nombre para esta hoja, hará que la CREG rechace el reporte.\n\n9. En caso de necesitarse el reporte de información para más de una Planta, no consolide la información en un solo formato. La CREG calculará los totales necesarios. Sin embargo, la suma de los valores reportados en las plantillas debe ser consistente con los valores registrados en los libros oficiales del agente, así como con los estados financieros certificados y reportados a los organismos de control."]

{"sheet":"Plantilla","index":1,"n_rows":173,"n_cols":7,"rows_kept":173,"cut":false,"hidden":false,"merged":[[0,0,0,1],[0,2,0,4],[1,0,1,1],[0,5,2,5],[0,6,2,6]]}
["FORMATO AOM-805\nREPORTE DE INFORMACIÓN DE COSTOS PARA LA REGULACIÓN\nMargen de Distribución Mayorista de Combustibles Líquidos",null,"EDC - ESTRUCTURA DE COSTOS - SUBACTIVIDADES",null,null,"TOTAL AOM","Observaciones"]
["-Seleccione la planta del agente a reportar-",null,"AOM Diesel del Margen de Distribución Mayorista","AOM Gasolina Motor Corriente del Margen de Distribución Mayorista","AOM otros negocios del Margen de Distribución Mayorista"]
["Código Concepto","Descripción concepto CREG","DSLMAY","GMCMAY","OTNMAY"]
["03000000","GASTOS DE ADMINISTRACIÓN",{"$f":"SUM(C5,C19,C23,C35,C42,C45,C48,C57,C60,C65,C68,C72,C75,C79,C86)","v":0},0,0,{"$f":"SUM(C4:E4)","v":0}]
["03010000","BENEFICIOS A EMPLEADOS",{"$f":"SUM(C6,C7,C16:C18)","v":0},0,0,{"$f":"SUM(C5:E5)","v":0}]
["03010100","Gastos de personal (pagos legales)",0,0,0,0]
["03010200","Pagos extralegales",{"$f":"SUM(C8:C15)","v":0},{"$f":"SUM(D8:D15)","v":0},0,0]
["03010201","Primas extralegales",0,0,0,0]
["03010202","Auxilios",0,0,0,0]
["03010203","Bonificaciones",0,0,0,0]
["03010204","Seguros",0,0,0,0]
["03010205","Capacitación al personal",0,0,0,0]
["03010206","Gastos deportivos y recreación",0,0,0,0]
["03010207","Gastos médicos y drogas (Incluye prepagada)",0,0,0,0]
["03010208","Otros",0,0,0,0]
["03010300","Gastos asociados a pensiones de jubilación",0,0,0,0]
["03010400","Beneficios a empleados a largo plazo",0,0,0,0]
["03010500","Beneficios posempleo",0,0,0,0]
["03020000","HONORARIOS",{"$f":"SUM(C20:C22)","v":0},0,0,0]
["03020100","Asesoría Jurídica",0,0,0,0]
["03020200","Asesoría técnica",0,0,0,0]
["03020300","Otros",0,0,0,0]
["03030000","IMPUESTOS  ",{"$f":"SUM(C24:C34)","v":0},{"$f":"SUM(D24:D34)","v":0},0,0]
["03030100","Industria y comercio",0,0,0,0]
["03030200","Predial ",0,0,0,0]
["03030300","Impuesto de vehículos",0,0,0,0]
["03030400","Impuesto a las ventas IVA NO descontable",0,0,0,0]
["03030500","Impuesto al carbono",0,0,0,0]
["03030600","Tasas y Contribuciones",0,0,0,0]
["03030700","Impuesto al patrimonio",0,0,0,0]
["03030800","Gravamen a los movimientos financieros",0,0,0,0]
["03030900","Otros impuestos",0,0,0,0]
["03031000","Impuesto alumbrado público",0,0,0,{"$f":"SUM(C33:E33)","v":0}]
["03031100","Impuesto de timbre",0,0,0,0]
["03040000","ARRENDAMIENTOS",{"$f":"SUM(C36:C41)","v":0},{"$f":"SUM(D36:D41)","v":0},0,0]
["03040100","Terrenos",0,0,0,0]
["03040200","Construcciones y edificaciones",0,0,0,0]
["03040300","Maquinaria y equipo",0,0,0,0]
["03040400","Otros - Arriendos",0,0,0,0]
["03040500","Equipo de computación y comunicación",0,0,0,0]
["03040600","Flota y Equipo de Transporte",0,0,0,0]
["03050000","CONTRIBUCIONES Y AFILIACIONES",{"$f":"SUM(C43:C44)","v":0},0,0,0]
["03050100","Afiliaciones y sostenimiento",0,0,0,0]
["03050200","Otros",0,0,0,0]
["03060000","SEGUROS ",{"$f":"SUM(C46:C47)","v":0},0,0,0]
["03060100","Vida colectiva",0,0,0,0]
["03060200","Otros",0,0,0,0]
["03070000","SERVICIOS",{"$f":"SUM(C49:C56)","v":0},{"$f":"SUM(D49:D56)","v":0},0,0]
["03070100","Aseo y vigilancia",0,0,0,0]
["03070200","Temporales",0,0,0,0]
["03070300","Asistencia técnica",0,0,0,0]
["03070400","Transporte fletes y acarreos",0,0,0,0]
["03070500","Publicidad y propaganda",0,0,0,0]
["03070600","Servicios de almacenamiento y manejo",0,0,0,0]
["03070700","Otros servicios",0,0,0,0]
["03070800","Servicios públicos",0,0,0,0]
["03080000","GASTOS LEGALES",{"$f":"SUM(C58:C59)","v":0},0,0,0]
["03080100","Registro mercantil",0,0,0,0]
["03080200","Otros",0,0,0,0]
["03090000","MANTENIMIENTO Y REPARACIONES",{"$f":"SUM(C61:C64)","v":0},0,0,0]
["03090100","Construcciones y edificaciones",0,0,0,0]
["03090200","Maquinaria y equipo",0,0,0,0]
["03090300","Flota y equipo de transporte",0,0,0,0]
["03090400","Otros",0,0,0,0]
["03100000","ADECUACIÓN E INSTALACIÓN",{"$f":"SUM(C66:C67)","v":0},0,0,0]
["03100100","Reparaciones locativas",0,0,0,0]
["03100200","Otros",0,0,0,0]
["03110000","GASTOS DE VIAJE",{"$f":"SUM(C69:C71)","v":0},0,0,0]
["03110100","Alojamiento y manutención",0,0,0,0]
["03110200","Pasajes aéreos",0,0,0,0]
["03110300","Otros",0,0,0,0]
["03120000","DEPRECIACIONES",{"$f":"SUM(C73:C74)","v":0},0,0,0]
["03120100","Maquinaria y equipo",0,0,0,{"$f":"SUM(C73:E73)","v":0}]
["03120200","Otros",0,0,0,0]
["03130000","AMORTIZACIONES",{"$f":"SUM(C76:C78)","v":0},0,0,0]
["03130100","Amortización de licencias y software",0,0,0,0]
["03130200","Amortización arriendos",0,0,0,0]
["03130300","Otras amortizaciones",0,0,0,0]
["03140000","DIVERSOS",{"$f":"SUM(C80:C85)","v":0},0,0,0]
["03140100","Comisiones",0,0,0,0]
["03140200","Gastos de representación y relaciones públicas",0,0,0,0]
["03140300","Elementos de aseo y cafetería",0,0,0,0]
["03140400","Útiles, papelería y fotocopias",0,0,0,0]
["03140500","Combustibles y lubricantes",0,0,0,0]
["03140600","Otros",0,0,0,0]
["03150000","PROVISIONES Y DETERIORO",0,0,0,0]
["04000000","GASTOS DE DISTRIBUCIÓN Y VENTAS",{"$f":"SUM(C88,C102,C106,C118,C125,C128,C131,C140,C143,C148,C151,C155,C158,C162,C169)","v":0},0,0,0]
["04010000","BENEFICIOS A EMPLEADOS",{"$f":"SUM(C89,C90,C99:C101)","v":0},0,0,0]
["04010100","Gastos de personal (pagos legales)",0,0,0,0]
["04010200","Pagos extralegales",{"$f":"SUM(C91:C98)","v":0},0,0,0]
["04010201","Primas extralegales",0,0,0,0]
["04010202","Auxilios",0,0,0,0]
["04010203","Bonificaciones",0,0,0,0]
["04010204","Seguros",0,0,0,0]
["04010205","Capacitación al personal",0,0,0,0]
["04010206","Gastos deportivos y recreación",0,0,0,0]
["04010207","Gastos médicos y drogas (Incluye prepagada)",0,0,0,0]
["04010208","Otros",0,0,0,0]
["04010300","Gastos asociados a pensiones de jubilación",0,0,0,0]
["04010400","Beneficios a empleados a largo plazo",0,0,0,0]
["04010500","Beneficios posempleo",0,0,0,0]
["04020000","HONORARIOS",{"$f":"SUM(C103:C105)","v":0},0,0,0]
["04020100","Asistencia jurídica",0,0,0,0]
["04020200","Asesoría técnica",0,0,0,0]
["04020300","Otros ",0,0,0,0]
["04030000","IMPUESTOS  ",{"$f":"SUM(C107:C117)","v":0},{"$f":"SUM(D107:D117)","v":0},0,0]
["04030100","Industria y comercio",0,0,0,0]
["04030200","Predial ",0,0,0,0]
["04030300","Impuesto de vehículos",0,0,0,0]
["04030400","Impuesto a las ventas IVA NO descontable",0,0,0,0]
["04030500","Impuesto al carbono",0,0,0,0]
["04030600","Tasas y Contribuciones",0,0,0,0]
["04030700","Impuesto al patrimonio",0,0,0,0]
["04030800","Gravamen a los movimientos financieros",0,0,0,0]
["04030900","Otros impuestos",0,0,0,0]
["04031000","Impuesto alumbrado público",0,0,0,{"$f":"SUM(C116:E116)","v":0}]
["04031100","Impuesto de timbre",0,0,0,0]
["04040000","ARRENDAMIENTOS",{"$f":"SUM(C119:C124)","v":0},0,0,0]
["04040100","Terrenos",0,0,0,0]
["04040200","Construcciones y edificaciones",0,0,0,0]
["04040300","Maquinaria y equipo",0,0,0,0]
["04040400","Equipo de computación y comunicación",0,0,0,0]
["04040500","Flota y Equipo de Transporte",0,0,0,0]
["04040600","Otros - Arriendos",0,0,0,0]
["04050000","CONTRIBUCIONES Y AFILIACIONES",{"$f":"SUM(C126:C127)","v":0},0,0,0]
["04050100","Afiliaciones y sostenimiento",0,0,0,0]
["04050200","Otros",0,0,0,0]
["04060000","SEGUROS ",{"$f":"SUM(C129:C130)","v":0},0,0,0]
["04060100","Vida colectiva",0,0,0,0]
["04060200","Otros",0,0,0,0]
["04070000","SERVICIOS",{"$f":"SUM(C132:C139)","v":0},{"$f":"SUM(D132:D139)","v":0},0,0]
["04070100","Aseo y vigilancia",0,0,0,0]
["04070200","Temporales",0,0,0,0]
["04070300","Asistencia técnica",0,0,0,0]
["04070400","Transporte fletes y acarreos",0,0,0,0]
["04070500","Publicidad y propaganda",0,0,0,0]
["04070600","Servicios de almacenamiento y manejo",0,0,0,0]
["04070700","Otros servicios",0,0,0,0]
["04070800","Servicios públicos",0,0,0,0]
["04080000","GASTOS LEGALES",{"$f":"SUM(C141:C142)","v":0},0,0,{"$f":"SUM(C140:E140)","v":0}]
["04080100","Registro mercantil",0,0,0,0]
["04080200","Otros",0,0,0,0]
["04090000","MANTENIMIENTO Y REPARACIONES",{"$f":"SUM(C144:C147)","v":0},0,0,0]
["04090100","Construcciones y edificaciones",0,0,0,0]
["04090200","Maquinaria y equipo",0,0,0,0]
["04090300","Flota y equipo de transporte",0,0,0,0]
["04090400","Otros",0,0,0,0]
["04100000","ADECUACIÓN E INSTALACIÓN",{"$f":"SUM(C149:C150)","v":0},0,0,0]
["04100100","Reparaciones locativas",0,0,0,0]
["04100200","Otros",0,0,0,0]
["04110000","GASTOS DE VIAJE",{"$f":"SUM(C152:C154)","v":0},0,0,0]
["04110100","Alojamiento y manutención",0,0,0,0]
["04110200","Pasajes aéreos",0,0,0,0]
["04110300","Otros",0,0,0,0]
["04120000","DEPRECIACIONES",{"$f":"SUM(C156:C157)","v":0},0,0,0]
["04120100","Maquinaria y equipo",0,0,0,0]
["04120200","Otros",0,0,0,0]
["04130000","AMORTIZACIONES",{"$f":"SUM(C159:C161)","v":0},0,0,0]
["04130100","Amortización de licencias y software",0,0,0,0]
["04130200","Amortización arriendos",0,0,0,0]
["04130300","Otras amortizaciones",0,0,0,0]
["04140000","DIVERSOS",{"$f":"SUM(C163:C168)","v":0},0,0,0]
["04140100","Comisiones",0,0,0,0]
["04140200","Gastos de representación y relaciones públicas",0,0,0,0]
["04140300","Elementos de aseo y cafetería",0,0,0,0]
["04140400","Útiles, papelería y fotocopias",0,0,0,0]
["04140500","Combustibles y lubricantes",0,0,0,0]
["04140600","Otros",0,0,0,0]
["04150000","PROVISIONES Y DETERIORO",0,0,0,0]
["05000000","NO OPERACIONALES",0,0,0,0]
["06000000","IMPUESTOS DE RENTA Y COMPLEMENTARIOS",0,0,0,0]
["07000000","COSTOS DE VENTA",0,0,0,0]
["08000000","COSTOS DE PRODUCCIÓN O DE OPERACIÓN",0,0,0,0]

{"sheet":"Plantas","index":2,"n_rows":245,"n_cols":5,"rows_kept":245,"cut":false,"hidden":false,"merged":[]}
["NOMBRE MOSTRADO","CODIGO SICOM AGENTE","RAZON SOCIAL PROPIETARIO","CODIGO SICOM PLANTA","NOMBRE PLANTA"]
["450029 > COOPERATIVA AYATAWACOOP (4122) - Planta: JAIDIS",330001,"COOPERATIVA AYATAWACOOP (4122)",450029,"JAIDIS"]
["450030 > COOPERATIVA AYATAWACOOP (4122) - Planta: ORIANA",330001,"COOPERATIVA AYATAWACOOP (4122)",450030,"ORIANA"]
["450178 > COOPERATIVA AYATAWACOOP (4122) - Planta: DISTRIBUIDORA DE COMBUSTIBLE WAYUU SAS",330001,"COOPERATIVA AYATAWACOOP (4122)",450178,"DISTRIBUIDORA DE COMBUSTIBLE WAYUU SAS"]
["450178 > COOPERATIVA AYATAWACOOP (4122) - Planta: VINDER SAS",330001,"COOPERATIVA AYATAWACOOP (4122)",450178,"VINDER SAS"]
["450197 > COOPERATIVA AYATAWACOOP (4122) - Planta: DISTRIBUIDORA DE COMBUSTIBLES WAYUU LTDA (DISCOWACOOP)",330001,"COOPERATIVA AYATAWACOOP (4122)",450197,"DISTRIBUIDORA DE COMBUSTIBLES WAYUU LTDA (DISCOWACOOP)"]
["999999 > COOPERATIVA AYATAWACOOP (4122): BACK OFFICE",330001,"COOPERATIVA AYATAWACOOP (4122)",999999,"BACK OFFICE"]
["440001 > ORGANIZACION TERPEL S.A. (4123) - Planta: PLANTA RIONEGRO",330002,"ORGANIZACION TERPEL S.A. (4123)",440001,"PLANTA RIONEGRO"]
["440002 > ORGANIZACION TERPEL S.A. (4123) - Planta: PLANTA SEBASTOPOL",330002,"ORGANIZACION TERPEL S.A. (4123)",440002,"PLANTA SEBASTOPOL"]
["440003 > ORGANIZACION TERPEL S.A. (4123) - Planta: PLANTA LA FORTUNA",330002,"ORGANIZACION TERPEL S.A. (4123)",440003,"PLANTA LA FORTUNA"]
["440004 > ORGANIZACION TERPEL S.A. (4123) - Planta: PLANTA AYACUCHO",330002,"ORGANIZACION TERPEL S.A. (4123)",440004,"PLANTA AYACUCHO"]
["440005 > ORGANIZACION TERPEL S.A. (4123) - Planta: PLANTA AGUAZUL",330002,"ORGANIZACION TERPEL S.A. (4123)",440005,"PLANTA AGUAZUL"]
["440006 > ORGANIZACION TERPEL S.A. (4123) - Planta: PLANTA AGUACLARA",330002,"ORGANIZACION TERPEL S.A. (4123)",440006,"PLANTA AGUACLARA"]
["440007 > ORGANIZACION TERPEL S.A. (4123) - Planta: PLANTA MANIZALES",330002,"ORGANIZACION TERPEL S.A. (4123)",440007,"PLANTA MANIZALES"]
["440009 > ORGANIZACION TERPEL S.A. (4123) - Planta: PLANTA MULALO",330002,"ORGANIZACION TERPEL S.A. (4123)",440009,"PLANTA MULALO"]
["440010 > ORGANIZACION TERPEL S.A. (4123) - Planta: PLANTA FLORENCIA",330002,"ORGANIZACION TERPEL S.A. (4123)",440010,"PLANTA FLORENCIA"]
["440011 > ORGANIZACION TERPEL S.A. (4123) - Planta: PLANTA VILLA DEL ROSARIO",330002,"ORGANIZACION TERPEL S.A. (4123)",440011,"PLANTA VILLA DEL ROSARIO"]
["440108 > ORGANIZACION TERPEL S.A. (4123) - Planta: PF ECOPETROL BARRANCA",330002,"ORGANIZACION TERPEL S.A. (4123)",440108,"PF ECOPETROL BARRANCA"]
["440109 > ORGANIZACION TERPEL S.A. (4123) - Planta: PF ECOPETROL CARTAGENA",330002,"ORGANIZACION TERPEL S.A. (4123)",440109,"PF ECOPETROL CARTAGENA"]
["440110 > ORGANIZACION TERPEL S.A. (4123) - Planta: PLANTA TERPEL MANSILLA",330002,"ORGANIZACION TERPEL S.A. (4123)",440110,"PLANTA TERPEL MANSILLA"]
["450010 > ORGANIZACION TERPEL S.A. (4123) - Planta: PLANTA BARANOA",330002,"ORGANIZACION TERPEL S.A. (4123)",450010,"PLANTA BARANOA"]
["450011 > ORGANIZACION TERPEL S.A. (4123) - Planta: PLANTA BUGA",330002,"ORGANIZACION TERPEL S.A. (4123)",450011,"PLANTA BUGA"]
["450012 > ORGANIZACION TERPEL S.A. (4123) - Planta: PLANTA CHIMITA",330002,"ORGANIZACION TERPEL S.A. (4123)",450012,"PLANTA CHIMITA"]
["450013 > ORGANIZACION TERPEL S.A. (4123) - Planta: PLANTA LA MARIA",330002,"ORGANIZACION TERPEL S.A. (4123)",450013,"PLANTA LA MARIA"]
["450014 > ORGANIZACION TERPEL S.A. (4123) - Planta: PLANTA LA PINTADA",330002,"ORGANIZACION TERPEL S.A. (4123)",450014,"PLANTA LA PINTADA"]
["450015 > ORGANIZACION TERPEL S.A. (4123) - Planta: PLANTA PEREIRA",330002,"ORGANIZACION TERPEL S.A. (4123)",450015,"PLANTA PEREIRA"]
["450016 > ORGANIZACION TERPEL S.A. (4123) - Planta: PLANTA MARIQUITA",330002,"ORGANIZACION TERPEL S.A. (4123)",450016,"PLANTA MARIQUITA"]
["450017 > ORGANIZACION TERPEL S.A. (4123) - Planta: PLANTA CONJUNTA MANCILLA",330002,"ORGANIZACION TERPEL S.A. (4123)",450017,"PLANTA CONJUNTA MANCILLA"]
["450033 > ORGANIZACION TERPEL S.A. (4123) - Planta: PLANTA PUENTE ARANDA",330002,"ORGANIZACION TERPEL S.A. (4123)",450033,"PLANTA PUENTE ARANDA"]
["450054 > ORGANIZACION TERPEL S.A. (4123) - Planta: TERMINAL ARAUCA",330002,"ORGANIZACION TERPEL S.A. (4123)",450054,"TERMINAL ARAUCA"]
["450055 > ORGANIZACION TERPEL S.A. (4123) - Planta: TERMINAL INIRIDA",330002,"ORGANIZACION TERPEL S.A. (4123)",450055,"TERMINAL INIRIDA"]
["450056 > ORGANIZACION TERPEL S.A. (4123) - Planta: TERMINAL LETICIA",330002,"ORGANIZACION TERPEL S.A. (4123)",450056,"TERMINAL LETICIA"]
["450057 > ORGANIZACION TERPEL S.A. (4123) - Planta: PLANTA PUERTO ASIS",330002,"ORGANIZACION TERPEL S.A. (4123)",450057,"PLANTA PUERTO ASIS"]
["450058 > ORGANIZACION TERPEL S.A. (4123) - Planta: TERMINAL PUERTO CARREÑO",330002,"ORGANIZACION TERPEL S.A. (4123)",450058,"TERMINAL PUERTO CARREÑO"]
["450059 > ORGANIZACION TERPEL S.A. (4123) - Planta: TERMINAL SAN JOSE DE GUAVIARE",330002,"ORGANIZACION TERPEL S.A. (4123)",450059,"TERMINAL SAN JOSE DE GUAVIARE"]
["450145 > ORGANIZACION TERPEL S.A. (4123) - Planta: PLANTA TOCANCIPA",330002,"ORGANIZACION TERPEL S.A. (4123)",450145,"PLANTA TOCANCIPA"]
["450159 > ORGANIZACION TERPEL S.A. (4123) - Planta: LAS FLOREZ",330002,"ORGANIZACION TERPEL S.A. (4123)",450159,"LAS FLOREZ"]
["450178 > ORGANIZACION TERPEL S.A. (4123) - Planta: VINDER SAS",330002,"ORGANIZACION TERPEL S.A. (4123)",450178,"VINDER SAS"]
["460001 > ORGANIZACION TERPEL S.A. (4123) - Planta: PLANTA CONJUNTA MAMONAL",330002,"ORGANIZACION TERPEL S.A. (4123)",460001,"PLANTA CONJUNTA MAMONAL"]
["460016 > ORGANIZACION TERPEL S.A. (4123) - Planta: PLANTA CONJUNTA NEIVA",330002,"ORGANIZACION TERPEL S.A. (4123)",460016,"PLANTA CONJUNTA NEIVA"]
["460018 > ORGANIZACION TERPEL S.A. (4123) - Planta: PLANTA CONJUNTA GUALANDAY",330002,"ORGANIZACION TERPEL S.A. (4123)",460018,"PLANTA CONJUNTA GUALANDAY"]
["999999 > ORGANIZACION TERPEL S.A. (4123): BACK OFFICE",330002,"ORGANIZACION TERPEL S.A. (4123)",999999,"BACK OFFICE"]
["440043 > BRIO (BIOMAX S.A.) (4124) - Planta: CARTAGENA",330003,"BRIO (BIOMAX S.A.) (4124)",440043,"CARTAGENA"]
["440044 > BRIO (BIOMAX S.A.) (4124) - Planta: MANSILLA",330003,"BRIO (BIOMAX S.A.) (4124)",440044,"MANSILLA"]
["440045 > BRIO (BIOMAX S.A.) (4124) - Planta: PEREIRA",330003,"BRIO (BIOMAX S.A.) (4124)",440045,"PEREIRA"]
["440227 > BRIO (BIOMAX S.A.) (4124) - Planta: PLANTA GUALANDAY TEMPORAL",330003,"BRIO (BIOMAX S.A.) (4124)",440227,"PLANTA GUALANDAY TEMPORAL"]
["450085 > BRIO (BIOMAX S.A.) (4124) - Planta: PLANTA CONJUNTA MAMONAL",330003,"BRIO (BIOMAX S.A.) (4124)",450085,"PLANTA CONJUNTA MAMONAL"]
["450086 > BRIO (BIOMAX S.A.) (4124) - Planta: PLANTA CONJUNTA GALAPA",330003,"BRIO (BIOMAX S.A.) (4124)",450086,"PLANTA CONJUNTA GALAPA"]
["470012 > BRIO (BIOMAX S.A.) (4124) - Planta: COMBUSTOLEO BARRANCA",330003,"BRIO (BIOMAX S.A.) (4124)",470012,"COMBUSTOLEO BARRANCA"]
["999999 > BRIO (BIOMAX S.A.) (4124): BACK OFFICE",330003,"BRIO (BIOMAX S.A.) (4124)",999999,"BACK OFFICE"]
["450060 > C.I. CORPORACION PETROLERA S.A. (4125) - Planta: VOPAK COLOMBIA S.A.",330004,"C.I. CORPORACION PETROLERA S.A. (4125)",450060,"VOPAK COLOMBIA S.A."]
["450064 > C.I. CORPORACION PETROLERA S.A. (4125) - Planta: PROMIN LTDA",330004,"C.I. CORPORACION PETROLERA S.A. (4125)",450064,"PROMIN LTDA"]
["999999 > C.I. CORPORACION PETROLERA S.A. (4125): BACK OFFICE",330004,"C.I. CORPORACION PETROLERA S.A. (4125)",999999,"BACK OFFICE"]
["450031 > C.I. ECOSPETROLEO S.A. (4126) - Planta: PLANTA CONJUNTA MAMONAL",330005,"C.I. ECOSPETROLEO S.A. (4126)",450031,"PLANTA CONJUNTA MAMONAL"]
["450032 > C.I. ECOSPETROLEO S.A. (4126) - Planta: PLANTA CONJUNTA GALAPA",330005,"C.I. ECOSPETROLEO S.A. (4126)",450032,"PLANTA CONJUNTA GALAPA"]
["450044 > C.I. ECOSPETROLEO S.A. (4126) - Planta: ALMAYORE SAS",330005,"C.I. ECOSPETROLEO S.A. (4126)",450044,"ALMAYORE SAS"]
["450212 > C.I. ECOSPETROLEO S.A. (4126) - Planta: PLANTA ALMAYORE",330005,"C.I. ECOSPETROLEO S.A. (4126)",450212,"PLANTA ALMAYORE"]
["999999 > C.I. ECOSPETROLEO S.A. (4126): BACK OFFICE",330005,"C.I. ECOSPETROLEO S.A. (4126)",999999,"BACK OFFICE"]
["440056 > PUMA ENERGY COLOMBIA COMBUSTIBLE SAS (4127) - Planta: PALERMO",330006,"PUMA ENERGY COLOMBIA COMBUSTIBLE SAS (4127)",440056,"PALERMO"]
["440343 > PUMA ENERGY COLOMBIA COMBUSTIBLE SAS (4127) - Planta: PLANTA PUMA BARANOA",330006,"PUMA ENERGY COLOMBIA COMBUSTIBLE SAS (4127)",440343,"PLANTA PUMA BARANOA"]
["450018 > PUMA ENERGY COLOMBIA COMBUSTIBLE SAS (4127) - Planta: PLANTA CONJUNTA MAMONAL",330006,"PUMA ENERGY COLOMBIA COMBUSTIBLE SAS (4127)",450018,"PLANTA CONJUNTA MAMONAL"]
["450082 > PUMA ENERGY COLOMBIA COMBUSTIBLE SAS (4127) - Planta: Terminal Galapa",330006,"PUMA ENERGY COLOMBIA COMBUSTIBLE SAS (4127)",450082,"Terminal Galapa"]
["450112 > PUMA ENERGY COLOMBIA COMBUSTIBLE SAS (4127) - Planta: PLANTA BIOMAX SEBASTOPOL",330006,"PUMA ENERGY COLOMBIA COMBUSTIBLE SAS (4127)",450112,"PLANTA BIOMAX SEBASTOPOL"]
["450112 > PUMA ENERGY COLOMBIA COMBUSTIBLE SAS (4127) - Planta: PUMA BARANOA",330006,"PUMA ENERGY COLOMBIA COMBUSTIBLE SAS (4127)",450112,"PUMA BARANOA"]
["450113 > PUMA ENERGY COLOMBIA COMBUSTIBLE SAS (4127) - Planta: PLANTA CONJUNTA GALAPA",330006,"PUMA ENERGY COLOMBIA COMBUSTIBLE SAS (4127)",450113,"PLANTA CONJUNTA GALAPA"]
["450144 > PUMA ENERGY COLOMBIA COMBUSTIBLE SAS (4127) - Planta: TOCANCIPA",330006,"PUMA ENERGY COLOMBIA COMBUSTIBLE SAS (4127)",450144,"TOCANCIPA"]
["450146 > PUMA ENERGY COLOMBIA COMBUSTIBLE SAS (4127) - Planta: PETROMIL LA CANDELARIA",330006,"PUMA ENERGY COLOMBIA COMBUSTIBLE SAS (4127)",450146,"PETROMIL LA CANDELARIA"]
["450147 > PUMA ENERGY COLOMBIA COMBUSTIBLE SAS (4127) - Planta: PLANTA PETROMIL RIO SOGAMOSO",330006,"PUMA ENERGY COLOMBIA COMBUSTIBLE SAS (4127)",450147,"PLANTA PETROMIL RIO SOGAMOSO"]
["450310 > PUMA ENERGY COLOMBIA COMBUSTIBLE SAS (4127) - Planta: IMPALA TERMINALS BARRANCABERMEJA SAL",330006,"PUMA ENERGY COLOMBIA COMBUSTIBLE SAS (4127)",450310,"IMPALA TERMINALS BARRANCABERMEJA SAL"]
["450322 > PUMA ENERGY COLOMBIA COMBUSTIBLE SAS (4127) - Planta: PLANTA CONJUNTA MANCILLA",330006,"PUMA ENERGY COLOMBIA COMBUSTIBLE SAS (4127)",450322,"PLANTA CONJUNTA MANCILLA"]
["450332 > PUMA ENERGY COLOMBIA COMBUSTIBLE SAS (4127) - Planta: SOCIEDAD PORTUARIA DEL DIQUE",330006,"PUMA ENERGY COLOMBIA COMBUSTIBLE SAS (4127)",450332,"SOCIEDAD PORTUARIA DEL DIQUE"]
["999999 > PUMA ENERGY COLOMBIA COMBUSTIBLE SAS (4127): BACK OFFICE",330006,"PUMA ENERGY COLOMBIA COMBUSTIBLE SAS (4127)",999999,"BACK OFFICE"]
["440052 > CHEVRON PETROLEUM COMPANY (4128) - Planta: PLANTA CHEVRON PUENTE ARANDA",330007,"CHEVRON PETROLEUM COMPANY (4128)",440052,"PLANTA CHEVRON PUENTE ARANDA"]
["440053 > CHEVRON PETROLEUM COMPANY (4128) - Planta: PLANTA CHEVRON CARTAGENA - MAMONAL",330007,"CHEVRON PETROLEUM COMPANY (4128)",440053,"PLANTA CHEVRON CARTAGENA - MAMONAL"]
["440054 > CHEVRON PETROLEUM COMPANY (4128) - Planta: PLANTA CHEVRON EL ARENAL",330007,"CHEVRON PETROLEUM COMPANY (4128)",440054,"PLANTA CHEVRON EL ARENAL"]
["440055 > CHEVRON PETROLEUM COMPANY (4128) - Planta: PLANTA CHEVRON EL PEDREGAL",330007,"CHEVRON PETROLEUM COMPANY (4128)",440055,"PLANTA CHEVRON EL PEDREGAL"]
["450119 > CHEVRON PETROLEUM COMPANY (4128) - Planta: PLANTA CONJUNTA GUALANDAY",330007,"CHEVRON PETROLEUM COMPANY (4128)",450119,"PLANTA CONJUNTA GUALANDAY"]
["450191 > CHEVRON PETROLEUM COMPANY (4128) - Planta: PLANTA PETROMIL RIO SOGAMOSO",330007,"CHEVRON PETROLEUM COMPANY (4128)",450191,"PLANTA PETROMIL RIO SOGAMOSO"]
["460003 > CHEVRON PETROLEUM COMPANY (4128) - Planta: PLANTA CONJUNTA BUENAVENTURA",330007,"CHEVRON PETROLEUM COMPANY (4128)",460003,"PLANTA CONJUNTA BUENAVENTURA"]
["460005 > CHEVRON PETROLEUM COMPANY (4128) - Planta: PLANTA CONJUNTA CARTAGO",330007,"CHEVRON PETROLEUM COMPANY (4128)",460005,"PLANTA CONJUNTA CARTAGO"]
["460007 > CHEVRON PETROLEUM COMPANY (4128) - Planta: PLANTA CONJUNTA YUMBO",330007,"CHEVRON PETROLEUM COMPANY (4128)",460007,"PLANTA CONJUNTA YUMBO"]
["460009 > CHEVRON PETROLEUM COMPANY (4128) - Planta: PLANTA CONJUNTA GALAPA",330007,"CHEVRON PETROLEUM COMPANY (4128)",460009,"PLANTA CONJUNTA GALAPA"]
["460014 > CHEVRON PETROLEUM COMPANY (4128) - Planta: PLANTA CONJUNTA MANCILLA",330007,"CHEVRON PETROLEUM COMPANY (4128)",460014,"PLANTA CONJUNTA MANCILLA"]
["999999 > CHEVRON PETROLEUM COMPANY (4128): BACK OFFICE",330007,"CHEVRON PETROLEUM COMPANY (4128)",999999,"BACK OFFICE"]
["440020 > PRIMAX COLOMBIA S.A. (4129) - Planta: PLANTA MEDELLIN",330008,"PRIMAX COLOMBIA S.A. (4129)",440020,"PLANTA MEDELLIN"]
["440022 > PRIMAX COLOMBIA S.A. (4129) - Planta: TERMINAL EXXONMOBIL BUCARAMANGA",330008,"PRIMAX COLOMBIA S.A. (4129)",440022,"TERMINAL EXXONMOBIL BUCARAMANGA"]
["450001 > PRIMAX COLOMBIA S.A. (4129) - Planta: PLANTA CONJUNTA MAMONAL",330008,"PRIMAX COLOMBIA S.A. (4129)",450001,"PLANTA CONJUNTA MAMONAL"]
["450002 > PRIMAX COLOMBIA S.A. (4129) - Planta: PLANTA CONJUNTA BUENAVENTURA",330008,"PRIMAX COLOMBIA S.A. (4129)",450002,"PLANTA CONJUNTA BUENAVENTURA"]
["450004 > PRIMAX COLOMBIA S.A. (4129) - Planta: PLANTA CONJUNTA CARTAGO",330008,"PRIMAX COLOMBIA S.A. (4129)",450004,"PLANTA CONJUNTA CARTAGO"]
["450005 > PRIMAX COLOMBIA S.A. (4129) - Planta: PLANTA CONJUNTA GALAPA",330008,"PRIMAX COLOMBIA S.A. (4129)",450005,"PLANTA CONJUNTA GALAPA"]
["450006 > PRIMAX COLOMBIA S.A. (4129) - Planta: PLANTA CONJUNTA GUALANDAY",330008,"PRIMAX COLOMBIA S.A. (4129)",450006,"PLANTA CONJUNTA GUALANDAY"]
["450007 > PRIMAX COLOMBIA S.A. (4129) - Planta: PLANTA CONJUNTA MANCILLA",330008,"PRIMAX COLOMBIA S.A. (4129)",450007,"PLANTA CONJUNTA MANCILLA"]
["450008 > PRIMAX COLOMBIA S.A. (4129) - Planta: PLANTA CONJUNTA NEIVA",330008,"PRIMAX COLOMBIA S.A. (4129)",450008,"PLANTA CONJUNTA NEIVA"]
["450009 > PRIMAX COLOMBIA S.A. (4129) - Planta: PLANTA CONJUNTA YUMBO",330008,"PRIMAX COLOMBIA S.A. (4129)",450009,"PLANTA CONJUNTA YUMBO"]
["450019 > PRIMAX COLOMBIA S.A. (4129) - Planta: PLANTA PUENTE ARANDA",330008,"PRIMAX COLOMBIA S.A. (4129)",450019,"PLANTA PUENTE ARANDA"]
["450021 > PRIMAX COLOMBIA S.A. (4129) - Planta: PLANTA MARIQUITA",330008,"PRIMAX COLOMBIA S.A. (4129)",450021,"PLANTA MARIQUITA"]
["450081 > PRIMAX COLOMBIA S.A. (4129) - Planta: PLANTA LA DORADA",330008,"PRIMAX COLOMBIA S.A. (4129)",450081,"PLANTA LA DORADA"]
["450136 > PRIMAX COLOMBIA S.A. (4129) - Planta: LAS FLOREZ - Bravo Petroleum",330008,"PRIMAX COLOMBIA S.A. (4129)",450136,"LAS FLOREZ - Bravo Petroleum"]
["450136 > PRIMAX COLOMBIA S.A. (4129) - Planta: TERMINAL CARTAGENA",330008,"PRIMAX COLOMBIA S.A. (4129)",450136,"TERMINAL CARTAGENA"]
["450140 > PRIMAX COLOMBIA S.A. (4129) - Planta: PUERTO BAHIA",330008,"PRIMAX COLOMBIA S.A. (4129)",450140,"PUERTO BAHIA"]
["450140 > PRIMAX COLOMBIA S.A. (4129) - Planta: Terminal Cartago",330008,"PRIMAX COLOMBIA S.A. (4129)",450140,"Terminal Cartago"]
["450142 > PRIMAX COLOMBIA S.A. (4129) - Planta: Terminal Medellin",330008,"PRIMAX COLOMBIA S.A. (4129)",450142,"Terminal Medellin"]
["450142 > PRIMAX COLOMBIA S.A. (4129) - Planta: TOCANCIPA",330008,"PRIMAX COLOMBIA S.A. (4129)",450142,"TOCANCIPA"]
["450190 > PRIMAX COLOMBIA S.A. (4129) - Planta: PLANTA PETROMIL RIO SOGAMOSO",330008,"PRIMAX COLOMBIA S.A. (4129)",450190,"PLANTA PETROMIL RIO SOGAMOSO"]
["470001 > PRIMAX COLOMBIA S.A. (4129) - Planta: BARRANCABERMEJA",330008,"PRIMAX COLOMBIA S.A. (4129)",470001,"BARRANCABERMEJA"]
["999999 > PRIMAX COLOMBIA S.A. (4129): BACK OFFICE",330008,"PRIMAX COLOMBIA S.A. (4129)",999999,"BACK OFFICE"]
["440389 > PETROBRAS COLOMBIA COMBUSTIBLES S.A.  (4130) - Planta: TERMINAL EXXONMOBIL BUCARAMANGA",330009,"PETROBRAS COLOMBIA COMBUSTIBLES S.A.  (4130)",440389,"TERMINAL EXXONMOBIL BUCARAMANGA"]
["450034 > PETROBRAS COLOMBIA COMBUSTIBLES S.A.  (4130) - Planta: PLANTA CONJUNTA CARTAGO",330009,"PETROBRAS COLOMBIA COMBUSTIBLES S.A.  (4130)",450034,"PLANTA CONJUNTA CARTAGO"]
["450035 > PETROBRAS COLOMBIA COMBUSTIBLES S.A.  (4130) - Planta: PLANTA CONJUNTA GALAPA",330009,"PETROBRAS COLOMBIA COMBUSTIBLES S.A.  (4130)",450035,"PLANTA CONJUNTA GALAPA"]
["450036 > PETROBRAS COLOMBIA COMBUSTIBLES S.A.  (4130) - Planta: PLANTA CONJUNTA GUALANDAY",330009,"PETROBRAS COLOMBIA COMBUSTIBLES S.A.  (4130)",450036,"PLANTA CONJUNTA GUALANDAY"]
["450037 > PETROBRAS COLOMBIA COMBUSTIBLES S.A.  (4130) - Planta: PLANTA CONJUNTA NEIVA",330009,"PETROBRAS COLOMBIA COMBUSTIBLES S.A.  (4130)",450037,"PLANTA CONJUNTA NEIVA"]
["450038 > PETROBRAS COLOMBIA COMBUSTIBLES S.A.  (4130) - Planta: PLANTA CONJUNTA YUMBO",330009,"PETROBRAS COLOMBIA COMBUSTIBLES S.A.  (4130)",450038,"PLANTA CONJUNTA YUMBO"]
["450046 > PETROBRAS COLOMBIA COMBUSTIBLES S.A.  (4130) - Planta: PLANTA CONJUNTA MAMONAL",330009,"PETROBRAS COLOMBIA COMBUSTIBLES S.A.  (4130)",450046,"PLANTA CONJUNTA MAMONAL"]
["450065 > PETROBRAS COLOMBIA COMBUSTIBLES S.A.  (4130) - Planta: PLANTA PUENTE ARANDA",330009,"PETROBRAS COLOMBIA COMBUSTIBLES S.A.  (4130)",450065,"PLANTA PUENTE ARANDA"]
["450099 > PETROBRAS COLOMBIA COMBUSTIBLES S.A.  (4130) - Planta: PLANTA MEDELLIN",330009,"PETROBRAS COLOMBIA COMBUSTIBLES S.A.  (4130)",450099,"PLANTA MEDELLIN"]
["450108 > PETROBRAS COLOMBIA COMBUSTIBLES S.A.  (4130) - Planta: PLANTA PETROMIL RIO SOGAMOSO",330009,"PETROBRAS COLOMBIA COMBUSTIBLES S.A.  (4130)",450108,"PLANTA PETROMIL RIO SOGAMOSO"]
["450109 > PETROBRAS COLOMBIA COMBUSTIBLES S.A.  (4130) - Planta: PETROMIL LA CANDELARIA",330009,"PETROBRAS COLOMBIA COMBUSTIBLES S.A.  (4130)",450109,"PETROMIL LA CANDELARIA"]
["450133 > PETROBRAS COLOMBIA COMBUSTIBLES S.A.  (4130) - Planta: PLANTA BIOMAX PEREIRA",330009,"PETROBRAS COLOMBIA COMBUSTIBLES S.A.  (4130)",450133,"PLANTA BIOMAX PEREIRA"]
["450152 > PETROBRAS COLOMBIA COMBUSTIBLES S.A.  (4130) - Planta: C.I. BIOREMEDIALES DE COLOMBIA S.A.S.",330009,"PETROBRAS COLOMBIA COMBUSTIBLES S.A.  (4130)",450152,"C.I. BIOREMEDIALES DE COLOMBIA S.A.S."]
["999999 > PETROBRAS COLOMBIA COMBUSTIBLES S.A.  (4130): BACK OFFICE",330009,"PETROBRAS COLOMBIA COMBUSTIBLES S.A.  (4130)",999999,"BACK OFFICE"]
["440047 > COMERCIALIZADORA PROXXON S.A. (4131) - Planta: PLANTA PROXXON TURBO",330010,"COMERCIALIZADORA PROXXON S.A. (4131)",440047,"PLANTA PROXXON TURBO"]
["999999 > COMERCIALIZADORA PROXXON S.A. (4131): BACK OFFICE",330010,"COMERCIALIZADORA PROXXON S.A. (4131)",999999,"BACK OFFICE"]
["440118 > UNION TEMPORAL BOLIVARIANA DE LA FRONTERA - FERTIPETROL (4132) - Planta: IMPORTADORA FERTIPETROLEOS TASAJERO SAS - FERTIPETROL SAS",330011,"UNION TEMPORAL BOLIVARIANA DE LA FRONTERA - FERTIPETROL (4132)",440118,"IMPORTADORA FERTIPETROLEOS TASAJERO SAS - FERTIPETROL SAS"]
["999999 > UNION TEMPORAL BOLIVARIANA DE LA FRONTERA - FERTIPETROL (4132): BACK OFFICE",330011,"UNION TEMPORAL BOLIVARIANA DE LA FRONTERA - FERTIPETROL (4132)",999999,"BACK OFFICE"]
["440046 > ZAPATA Y VELASQUEZ S.A. (4133) - Planta: ZAPATA Y VELASQUEZ S.A.",330012,"ZAPATA Y VELASQUEZ S.A. (4133)",440046,"ZAPATA Y VELASQUEZ S.A."]
["450242 > ZAPATA Y VELASQUEZ S.A. (4133) - Planta: PLANTA PUENTE ARANDA",330012,"ZAPATA Y VELASQUEZ S.A. (4133)",450242,"PLANTA PUENTE ARANDA"]
["450242 > ZAPATA Y VELASQUEZ S.A. (4133) - Planta: ZAPATA Y VELASQUEZ",330012,"ZAPATA Y VELASQUEZ S.A. (4133)",450242,"ZAPATA Y VELASQUEZ"]
["999999 > ZAPATA Y VELASQUEZ S.A. (4133): BACK OFFICE",330012,"ZAPATA Y VELASQUEZ S.A. (4133)",999999,"BACK OFFICE"]
["440077 > MARKETING OIL COMPANY SAS (4134) - Planta: PLANTA MADRID",330013,"MARKETING OIL COMPANY SAS (4134)",440077,"PLANTA MADRID"]
["450062 > MARKETING OIL COMPANY SAS (4134) - Planta: PLANTA LLANOS",330013,"MARKETING OIL COMPANY SAS (4134)",450062,"PLANTA LLANOS"]
["450062 > MARKETING OIL COMPANY SAS (4134) - Planta: PLANTA PUENTE ARANDA",330013,"MARKETING OIL COMPANY SAS (4134)",450062,"PLANTA PUENTE ARANDA"]
["450161 > MARKETING OIL COMPANY SAS (4134) - Planta: PLANTA MADRID",330013,"MARKETING OIL COMPANY SAS (4134)",450161,"PLANTA MADRID"]
["450161 > MARKETING OIL COMPANY SAS (4134) - Planta: RETRAMAR SAS - PALERMO TANKS",330013,"MARKETING OIL COMPANY SAS (4134)",450161,"RETRAMAR SAS - PALERMO TANKS"]
["450203 > MARKETING OIL COMPANY SAS (4134) - Planta: PLANTA LLANOS",330013,"MARKETING OIL COMPANY SAS (4134)",450203,"PLANTA LLANOS"]
["450257 > MARKETING OIL COMPANY SAS (4134) - Planta: PETRODECOL - PACIFIC PORT SA",330013,"MARKETING OIL COMPANY SAS (4134)",450257,"PETRODECOL - PACIFIC PORT SA"]
["999999 > MARKETING OIL COMPANY SAS (4134): BACK OFFICE",330013,"MARKETING OIL COMPANY SAS (4134)",999999,"BACK OFFICE"]
["440040 > ZEUSS SAS (4135) - Planta: ZEUSS PETROLEUM S.A",330014,"ZEUSS SAS (4135)",440040,"ZEUSS PETROLEUM S.A"]
["450116 > ZEUSS SAS (4135) - Planta: PLANTA CONJUNTA GALAPA",330014,"ZEUSS SAS (4135)",450116,"PLANTA CONJUNTA GALAPA"]
["450117 > ZEUSS SAS (4135) - Planta: PLANTA CHEVRON MAMONAL",330014,"ZEUSS SAS (4135)",450117,"PLANTA CHEVRON MAMONAL"]
["450138 > ZEUSS SAS (4135) - Planta: ENERGIZAR CARTAGO",330014,"ZEUSS SAS (4135)",450138,"ENERGIZAR CARTAGO"]
["450142 > ZEUSS SAS (4135) - Planta: TOCANCIPA",330014,"ZEUSS SAS (4135)",450142,"TOCANCIPA"]
["450168 > ZEUSS SAS (4135) - Planta: PETROMIL LA CANDELARIA",330014,"ZEUSS SAS (4135)",450168,"PETROMIL LA CANDELARIA"]
["450219 > ZEUSS SAS (4135) - Planta: PLANTA ALMAYORE",330014,"ZEUSS SAS (4135)",450219,"PLANTA ALMAYORE"]
["999999 > ZEUSS SAS (4135): BACK OFFICE",330014,"ZEUSS SAS (4135)",999999,"BACK OFFICE"]
["440233 > BIOMAX (4136) - Planta: MANSILLA BRIO",330015,"BIOMAX (4136)",440233,"MANSILLA BRIO"]
["440337 > BIOMAX (4136) - Planta: PLANTA LLANOS",330015,"BIOMAX (4136)",440337,"PLANTA LLANOS"]
["440350 > BIOMAX (4136) - Planta: BIOMAX BOYACA",330015,"BIOMAX (4136)",440350,"BIOMAX BOYACA"]
["440373 > BIOMAX (4136) - Planta: PLANTA BIOMAX MULALO",330015,"BIOMAX (4136)",440373,"PLANTA BIOMAX MULALO"]
["440380 > BIOMAX (4136) - Planta: PLANTA CHIMITA (ESPEJO TERPEL)",330015,"BIOMAX (4136)",440380,"PLANTA CHIMITA (ESPEJO TERPEL)"]
["450049 > BIOMAX (4136) - Planta: PLANTA CONJUNTA BUENAVENTURA",330015,"BIOMAX (4136)",450049,"PLANTA CONJUNTA BUENAVENTURA"]
["450050 > BIOMAX (4136) - Planta: PLANTA CONJUNTA CARTAGO",330015,"BIOMAX (4136)",450050,"PLANTA CONJUNTA CARTAGO"]
["450051 > BIOMAX (4136) - Planta: PLANTA CONJUNTA GUALANDAY",330015,"BIOMAX (4136)",450051,"PLANTA CONJUNTA GUALANDAY"]
["450052 > BIOMAX (4136) - Planta: PLANTA CONJUNTA NEIVA",330015,"BIOMAX (4136)",450052,"PLANTA CONJUNTA NEIVA"]
["450053 > BIOMAX (4136) - Planta: PLANTA CONJUNTA YUMBO",330015,"BIOMAX (4136)",450053,"PLANTA CONJUNTA YUMBO"]
["450063 > BIOMAX (4136) - Planta: PLANTA VOPAK CARTAGENA",330015,"BIOMAX (4136)",450063,"PLANTA VOPAK CARTAGENA"]
["450077 > BIOMAX (4136) - Planta: Atlantic Oil Terminal",330015,"BIOMAX (4136)",450077,"Atlantic Oil Terminal"]
["450077 > BIOMAX (4136) - Planta: PLANTA MANSILLA BIOMAX",330015,"BIOMAX (4136)",450077,"PLANTA MANSILLA BIOMAX"]
["450083 > BIOMAX (4136) - Planta: PLANTA CONJUNTA GALAPA",330015,"BIOMAX (4136)",450083,"PLANTA CONJUNTA GALAPA"]
["450084 > BIOMAX (4136) - Planta: PLANTA CONJUNTA MAMONAL",330015,"BIOMAX (4136)",450084,"PLANTA CONJUNTA MAMONAL"]
["450093 > BIOMAX (4136) - Planta: PLANTA MEDELLIN",330015,"BIOMAX (4136)",450093,"PLANTA MEDELLIN"]
["450094 > BIOMAX (4136) - Planta: TERMINAL EXXONMOBIL BUCARAMANGA",330015,"BIOMAX (4136)",450094,"TERMINAL EXXONMOBIL BUCARAMANGA"]
["450105 > BIOMAX (4136) - Planta: OILTANKING COLOMBIA S.A.",330015,"BIOMAX (4136)",450105,"OILTANKING COLOMBIA S.A."]
["450112 > BIOMAX (4136) - Planta: PLANTA BIOMAX SEBASTOPOL",330015,"BIOMAX (4136)",450112,"PLANTA BIOMAX SEBASTOPOL"]
["450151 > BIOMAX (4136) - Planta: PLANTA CHEVRON EL PEDREGAL",330015,"BIOMAX (4136)",450151,"PLANTA CHEVRON EL PEDREGAL"]
["450155 > BIOMAX (4136) - Planta: TERMINAL PUENTE ARANDA",330015,"BIOMAX (4136)",450155,"TERMINAL PUENTE ARANDA"]
["450157 > BIOMAX (4136) - Planta: PLANTA CHEVRON BUENAVENTURA",330015,"BIOMAX (4136)",450157,"PLANTA CHEVRON BUENAVENTURA"]
["450162 > BIOMAX (4136) - Planta: RETRAMAR SAS - PALERMO TANKS",330015,"BIOMAX (4136)",450162,"RETRAMAR SAS - PALERMO TANKS"]
["450165 > BIOMAX (4136) - Planta: PLANTA BIOMAX PEREIRA",330015,"BIOMAX (4136)",450165,"PLANTA BIOMAX PEREIRA"]
["450166 > BIOMAX (4136) - Planta: PLANTA BIOCOMBUSTIBLES MANSILLA",330015,"BIOMAX (4136)",450166,"PLANTA BIOCOMBUSTIBLES MANSILLA"]
["450177 > BIOMAX (4136) - Planta: PLANTA CONJUNTA GUALANDAY - CHEVRON",330015,"BIOMAX (4136)",450177,"PLANTA CONJUNTA GUALANDAY - CHEVRON"]
["450188 > BIOMAX (4136) - Planta: PETROMIL LA CANDELARIA",330015,"BIOMAX (4136)",450188,"PETROMIL LA CANDELARIA"]
["450189 > BIOMAX (4136) - Planta: PLANTA PETROMIL RIO SOGAMOSO",330015,"BIOMAX (4136)",450189,"PLANTA PETROMIL RIO SOGAMOSO"]
["450209 > BIOMAX (4136) - Planta: TOCANCIPA",330015,"BIOMAX (4136)",450209,"TOCANCIPA"]
["450215 > BIOMAX (4136) - Planta: PLANTA MULALO",330015,"BIOMAX (4136)",450215,"PLANTA MULALO"]
["450219 > BIOMAX (4136) - Planta: PLANTA LLANOS",330015,"BIOMAX (4136)",450219,"PLANTA LLANOS"]
["999999 > BIOMAX (4136): BACK OFFICE",330015,"BIOMAX (4136)",999999,"BACK OFFICE"]
["440042 > PETROLEOS DEL MILENIO S.A.S. - PETROMIL S.A.S. (4565) - Planta: PETROMIL EMGESA",330016,"PETROLEOS DEL MILENIO S.A.S. - PETROMIL S.A.S. (4565)",440042,"PETROMIL EMGESA"]
["440176 > PETROLEOS DEL MILENIO S.A.S. - PETROMIL S.A.S. (4565) - Planta: PETROMIL YUMBO",330016,"PETROLEOS DEL MILENIO S.A.S. - PETROMIL S.A.S. (4565)",440176,"PETROMIL YUMBO"]
["440445 > PETROLEOS DEL MILENIO S.A.S. - PETROMIL S.A.S. (4565) - Planta: PLANTA CARTAGO",330016,"PETROLEOS DEL MILENIO S.A.S. - PETROMIL S.A.S. (4565)",440445,"PLANTA CARTAGO"]
["450022 > PETROLEOS DEL MILENIO S.A.S. - PETROMIL S.A.S. (4565) - Planta: PLANTA BARANOA",330016,"PETROLEOS DEL MILENIO S.A.S. - PETROMIL S.A.S. (4565)",450022,"PLANTA BARANOA"]
["450023 > PETROLEOS DEL MILENIO S.A.S. - PETROMIL S.A.S. (4565) - Planta: PLANTA BUGA",330016,"PETROLEOS DEL MILENIO S.A.S. - PETROMIL S.A.S. (4565)",450023,"PLANTA BUGA"]
["450027 > PETROLEOS DEL MILENIO S.A.S. - PETROMIL S.A.S. (4565) - Planta: PLANTA PEREIRA",330016,"PETROLEOS DEL MILENIO S.A.S. - PETROMIL S.A.S. (4565)",450027,"PLANTA PEREIRA"]
["450062 > PETROLEOS DEL MILENIO S.A.S. - PETROMIL S.A.S. (4565) - Planta: PLANTA PUENTE ARANDA",330016,"PETROLEOS DEL MILENIO S.A.S. - PETROMIL S.A.S. (4565)",450062,"PLANTA PUENTE ARANDA"]
["450067 > PETROLEOS DEL MILENIO S.A.S. - PETROMIL S.A.S. (4565) - Planta: PLANTA CONJUNTA CARTAGO",330016,"PETROLEOS DEL MILENIO S.A.S. - PETROMIL S.A.S. (4565)",450067,"PLANTA CONJUNTA CARTAGO"]
["450068 > PETROLEOS DEL MILENIO S.A.S. - PETROMIL S.A.S. (4565) - Planta: PLANTA CONJUNTA YUMBO",330016,"PETROLEOS DEL MILENIO S.A.S. - PETROMIL S.A.S. (4565)",450068,"PLANTA CONJUNTA YUMBO"]
["450071 > PETROLEOS DEL MILENIO S.A.S. - PETROMIL S.A.S. (4565) - Planta: PLANTA CONJUNTA BUENAVENTURA",330016,"PETROLEOS DEL MILENIO S.A.S. - PETROMIL S.A.S. (4565)",450071,"PLANTA CONJUNTA BUENAVENTURA"]
["450107 > PETROLEOS DEL MILENIO S.A.S. - PETROMIL S.A.S. (4565) - Planta: PLANTA PETROMIL RIO SOGAMOSO",330016,"PETROLEOS DEL MILENIO S.A.S. - PETROMIL S.A.S. (4565)",450107,"PLANTA PETROMIL RIO SOGAMOSO"]
["450111 > PETROLEOS DEL MILENIO S.A.S. - PETROMIL S.A.S. (4565) - Planta: PETROMIL LA CANDELARIA",330016,"PETROLEOS DEL MILENIO S.A.S. - PETROMIL S.A.S. (4565)",450111,"PETROMIL LA CANDELARIA"]
["450158 > PETROLEOS DEL MILENIO S.A.S. - PETROMIL S.A.S. (4565) - Planta: PETROMIL LA CANDELARIA",330016,"PETROLEOS DEL MILENIO S.A.S. - PETROMIL S.A.S. (4565)",450158,"PETROMIL LA CANDELARIA"]
["450162 > PETROLEOS DEL MILENIO S.A.S. - PETROMIL S.A.S. (4565) - Planta: PLANTA PETROMIL RIO SOGAMOSO",330016,"PETROLEOS DEL MILENIO S.A.S. - PETROMIL S.A.S. (4565)",450162,"PLANTA PETROMIL RIO SOGAMOSO"]
["450204 > PETROLEOS DEL MILENIO S.A.S. - PETROMIL S.A.S. (4565) - Planta: PLANTA TELBA SAS",330016,"PETROLEOS DEL MILENIO S.A.S. - PETROMIL S.A.S. (4565)",450204,"PLANTA TELBA SAS"]
["450236 > PETROLEOS DEL MILENIO S.A.S. - PETROMIL S.A.S. (4565) - Planta: PETROMIL AGUALINDA",330016,"PETROLEOS DEL MILENIO S.A.S. - PETROMIL S.A.S. (4565)",450236,"PETROMIL AGUALINDA"]
["450243 > PETROLEOS DEL MILENIO S.A.S. - PETROMIL S.A.S. (4565) - Planta: PLANTA TELBA  ZONA FRANCA",330016,"PETROLEOS DEL MILENIO S.A.S. - PETROMIL S.A.S. (4565)",450243,"PLANTA TELBA  ZONA FRANCA"]
["450246 > PETROLEOS DEL MILENIO S.A.S. - PETROMIL S.A.S. (4565) - Planta: PLANTA BIOMAX MULALO",330016,"PETROLEOS DEL MILENIO S.A.S. - PETROMIL S.A.S. (4565)",450246,"PLANTA BIOMAX MULALO"]
["450267 > PETROLEOS DEL MILENIO S.A.S. - PETROMIL S.A.S. (4565) - Planta: PLANTA PUENTE ARANDA",330016,"PETROLEOS DEL MILENIO S.A.S. - PETROMIL S.A.S. (4565)",450267,"PLANTA PUENTE ARANDA"]
["450329 > PETROLEOS DEL MILENIO S.A.S. - PETROMIL S.A.S. (4565) - Planta: PLANTA CONJUNTA GUALANDAY",330016,"PETROLEOS DEL MILENIO S.A.S. - PETROMIL S.A.S. (4565)",450329,"PLANTA CONJUNTA GUALANDAY"]
["470010 > PETROLEOS DEL MILENIO S.A.S. - PETROMIL S.A.S. (4565) - Planta: PLANTA TELBA",330016,"PETROLEOS DEL MILENIO S.A.S. - PETROMIL S.A.S. (4565)",470010,"PLANTA TELBA"]
["850002 > PETROLEOS DEL MILENIO S.A.S. - PETROMIL S.A.S. (4565) - Planta: PLANTA GUALANDAY - TEMPORAL",330016,"PETROLEOS DEL MILENIO S.A.S. - PETROMIL S.A.S. (4565)",850002,"PLANTA GUALANDAY - TEMPORAL"]
["999999 > PETROLEOS DEL MILENIO S.A.S. - PETROMIL S.A.S. (4565): BACK OFFICE",330016,"PETROLEOS DEL MILENIO S.A.S. - PETROMIL S.A.S. (4565)",999999,"BACK OFFICE"]
["450079 > COOPERATIVA MULTIACTIVA DE PIMPINEROS DEL NORTE - COOMULPINORT (7290) - Planta: Importadora Fertipetroleos Tasajero Limitada",330023,"COOPERATIVA MULTIACTIVA DE PIMPINEROS DEL NORTE - COOMULPINORT (7290)",450079,"Importadora Fertipetroleos Tasajero Limitada"]
["450156 > COOPERATIVA MULTIACTIVA DE PIMPINEROS DEL NORTE - COOMULPINORT (7290) - Planta: PLANTA VILLA DEL ROSARIO",330023,"COOPERATIVA MULTIACTIVA DE PIMPINEROS DEL NORTE - COOMULPINORT (7290)",450156,"PLANTA VILLA DEL ROSARIO"]
["450162 > COOPERATIVA MULTIACTIVA DE PIMPINEROS DEL NORTE - COOMULPINORT (7290) - Planta: PLANTA PETROMIL RIO SOGAMOSO",330023,"COOPERATIVA MULTIACTIVA DE PIMPINEROS DEL NORTE - COOMULPINORT (7290)",450162,"PLANTA PETROMIL RIO SOGAMOSO"]
["450181 > COOPERATIVA MULTIACTIVA DE PIMPINEROS DEL NORTE - COOMULPINORT (7290) - Planta: PLANTA CHIMITA",330023,"COOPERATIVA MULTIACTIVA DE PIMPINEROS DEL NORTE - COOMULPINORT (7290)",450181,"PLANTA CHIMITA"]
["450245 > COOPERATIVA MULTIACTIVA DE PIMPINEROS DEL NORTE - COOMULPINORT (7290) - Planta: PETROMIL AGUALINDA",330023,"COOPERATIVA MULTIACTIVA DE PIMPINEROS DEL NORTE - COOMULPINORT (7290)",450245,"PETROMIL AGUALINDA"]
["450246 > COOPERATIVA MULTIACTIVA DE PIMPINEROS DEL NORTE - COOMULPINORT (7290) - Planta: PLANTA PETROMIL RIO SOGAMOSO",330023,"COOPERATIVA MULTIACTIVA DE PIMPINEROS DEL NORTE - COOMULPINORT (7290)",450246,"PLANTA PETROMIL RIO SOGAMOSO"]
["450291 > COOPERATIVA MULTIACTIVA DE PIMPINEROS DEL NORTE - COOMULPINORT (7290) - Planta: PLANTA PETROMIL RIO SOGAMOSO",330023,"COOPERATIVA MULTIACTIVA DE PIMPINEROS DEL NORTE - COOMULPINORT (7290)",450291,"PLANTA PETROMIL RIO SOGAMOSO"]
["450292 > COOPERATIVA MULTIACTIVA DE PIMPINEROS DEL NORTE - COOMULPINORT (7290) - Planta: PETROMIL AGUALINDA",330023,"COOPERATIVA MULTIACTIVA DE PIMPINEROS DEL NORTE - COOMULPINORT (7290)",450292,"PETROMIL AGUALINDA"]
["999999 > COOPERATIVA MULTIACTIVA DE PIMPINEROS DEL NORTE - COOMULPINORT (7290): BACK OFFICE",330023,"COOPERATIVA MULTIACTIVA DE PIMPINEROS DEL NORTE - COOMULPINORT (7290)",999999,"BACK OFFICE"]
["440215 > DISTRIBUIDORA DE COMBUSTIBLES WAYUU SAS (7354) - Planta: DISTRIBUIDORA DE COMBUSTIBLES WAYUU SAS",330024,"DISTRIBUIDORA DE COMBUSTIBLES WAYUU SAS (7354)",440215,"DISTRIBUIDORA DE COMBUSTIBLES WAYUU SAS"]
["450179 > DISTRIBUIDORA DE COMBUSTIBLES WAYUU SAS (7354) - Planta: DISTRIBUIDORA DE COMBUSTIBLE WAYUU SAS",330024,"DISTRIBUIDORA DE COMBUSTIBLES WAYUU SAS (7354)",450179,"DISTRIBUIDORA DE COMBUSTIBLE WAYUU SAS"]
["450179 > DISTRIBUIDORA DE COMBUSTIBLES WAYUU SAS (7354) - Planta: PETROMAG SAS",330024,"DISTRIBUIDORA DE COMBUSTIBLES WAYUU SAS (7354)",450179,"PETROMAG SAS"]
["999999 > DISTRIBUIDORA DE COMBUSTIBLES WAYUU SAS (7354): BACK OFFICE",330024,"DISTRIBUIDORA DE COMBUSTIBLES WAYUU SAS (7354)",999999,"BACK OFFICE"]
["450100 > CASAMOTOR S.A.S. (7875) - Planta: PLANTA CONJUNTA GUALANDAY",330025,"CASAMOTOR S.A.S. (7875)",450100,"PLANTA CONJUNTA GUALANDAY"]
["450101 > CASAMOTOR S.A.S. (7875) - Planta: PLANTA CONJUNTA NEIVA",330025,"CASAMOTOR S.A.S. (7875)",450101,"PLANTA CONJUNTA NEIVA"]
["450102 > CASAMOTOR S.A.S. (7875) - Planta: PLANTA LA DORADA",330025,"CASAMOTOR S.A.S. (7875)",450102,"PLANTA LA DORADA"]
["450143 > CASAMOTOR S.A.S. (7875) - Planta: TOCANCIPA",330025,"CASAMOTOR S.A.S. (7875)",450143,"TOCANCIPA"]
["999999 > CASAMOTOR S.A.S. (7875): BACK OFFICE",330025,"CASAMOTOR S.A.S. (7875)",999999,"BACK OFFICE"]
["450106 > PROLUB COMBUSTIBLES Y LUBRICANTES SA (9028) - Planta: PLANTA PETROMIL RIO SOGAMOSO",330027,"PROLUB COMBUSTIBLES Y LUBRICANTES SA (9028)",450106,"PLANTA PETROMIL RIO SOGAMOSO"]
["450110 > PROLUB COMBUSTIBLES Y LUBRICANTES SA (9028) - Planta: PETROMIL LA CANDELARIA",330027,"PROLUB COMBUSTIBLES Y LUBRICANTES SA (9028)",450110,"PETROMIL LA CANDELARIA"]
["450118 > PROLUB COMBUSTIBLES Y LUBRICANTES SA (9028) - Planta: PLANTA CONJUNTA GUALANDAY",330027,"PROLUB COMBUSTIBLES Y LUBRICANTES SA (9028)",450118,"PLANTA CONJUNTA GUALANDAY"]
["450163 > PROLUB COMBUSTIBLES Y LUBRICANTES SA (9028) - Planta: PLANTA BIOMAX PEREIRA",330027,"PROLUB COMBUSTIBLES Y LUBRICANTES SA (9028)",450163,"PLANTA BIOMAX PEREIRA"]
["450164 > PROLUB COMBUSTIBLES Y LUBRICANTES SA (9028) - Planta: PLANTA BIOCOMBUSTIBLES MANSILLA",330027,"PROLUB COMBUSTIBLES Y LUBRICANTES SA (9028)",450164,"PLANTA BIOCOMBUSTIBLES MANSILLA"]
["999999 > PROLUB COMBUSTIBLES Y LUBRICANTES SA (9028): BACK OFFICE",330027,"PROLUB COMBUSTIBLES Y LUBRICANTES SA (9028)",999999,"BACK OFFICE"]
["440312 > IMPORTADORA FERTIPETROLEOS TASAJERO SAS - FERTIPETROL SAS (15668) - Planta: IMPORTADORA FERTIPETROLEOS TASAJERO SAS - FERTIPETROL SAS",330028,"IMPORTADORA FERTIPETROLEOS TASAJERO SAS - FERTIPETROL SAS (15668)",440312,"IMPORTADORA FERTIPETROLEOS TASAJERO SAS - FERTIPETROL SAS"]
["999999 > IMPORTADORA FERTIPETROLEOS TASAJERO SAS - FERTIPETROL SAS (15668): BACK OFFICE",330028,"IMPORTADORA FERTIPETROLEOS TASAJERO SAS - FERTIPETROL SAS (15668)",999999,"BACK OFFICE"]
["440338 > PETRODECOL S.A. (18352) - Planta: PETRODECOL - PACIFIC PORT SA",330029,"PETRODECOL S.A. (18352)",440338,"PETRODECOL - PACIFIC PORT SA"]
["450262 > PETRODECOL S.A. (18352) - Planta: PETRODECOL BUENAVENTURA",330029,"PETRODECOL S.A. (18352)",450262,"PETRODECOL BUENAVENTURA"]
["999999 > PETRODECOL S.A. (18352): BACK OFFICE",330029,"PETRODECOL S.A. (18352)",999999,"BACK OFFICE"]
["450195 > OCEAN ENERGY SAS (19001) - Planta: INVERSIONES JUNAD S.A.S",330030,"OCEAN ENERGY SAS (19001)",450195,"INVERSIONES JUNAD S.A.S"]
["999999 > OCEAN ENERGY SAS (19001): BACK OFFICE",330030,"OCEAN ENERGY SAS (19001)",999999,"BACK OFFICE"]
["450184 > P Y B PETROLEOS Y BIOCOMBUSTIBLES S.A.S. (19978) - Planta: OILTANKING COLOMBIA S.A.",330031,"P Y B PETROLEOS Y BIOCOMBUSTIBLES S.A.S. (19978)",450184,"OILTANKING COLOMBIA S.A."]
["450185 > P Y B PETROLEOS Y BIOCOMBUSTIBLES S.A.S. (19978) - Planta: PLANTA JAIDIS",330031,"P Y B PETROLEOS Y BIOCOMBUSTIBLES S.A.S. (19978)",450185,"PLANTA JAIDIS"]
["450185 > P Y B PETROLEOS Y BIOCOMBUSTIBLES S.A.S. (19978) - Planta: PRINCIPAL ZONA FRANCA",330031,"P Y B PETROLEOS Y BIOCOMBUSTIBLES S.A.S. (19978)",450185,"PRINCIPAL ZONA FRANCA"]
["450201 > P Y B PETROLEOS Y BIOCOMBUSTIBLES S.A.S. (19978) - Planta: JAIDIS",330031,"P Y B PETROLEOS Y BIOCOMBUSTIBLES S.A.S. (19978)",450201,"JAIDIS"]
["450207 > P Y B PETROLEOS Y BIOCOMBUSTIBLES S.A.S. (19978) - Planta: ORIANA",330031,"P Y B PETROLEOS Y BIOCOMBUSTIBLES S.A.S. (19978)",450207,"ORIANA"]
["999999 > P Y B PETROLEOS Y BIOCOMBUSTIBLES S.A.S. (19978): BACK OFFICE",330031,"P Y B PETROLEOS Y BIOCOMBUSTIBLES S.A.S. (19978)",999999,"BACK OFFICE"]
["450208 > PLUS MAS ENERGY S.A.S (21901) - Planta: PLANTA DE COMBUSTIBLES PLUS +",330032,"PLUS MAS ENERGY S.A.S (21901)",450208,"PLANTA DE COMBUSTIBLES PLUS +"]
["450217 > PLUS MAS ENERGY S.A.S (21901) - Planta: PLANTA LA DORADA",330032,"PLUS MAS ENERGY S.A.S (21901)",450217,"PLANTA LA DORADA"]
["450218 > PLUS MAS ENERGY S.A.S (21901) - Planta: PLANTA CONJUNTA NEIVA",330032,"PLUS MAS ENERGY S.A.S (21901)",450218,"PLANTA CONJUNTA NEIVA"]
["450223 > PLUS MAS ENERGY S.A.S (21901) - Planta: TOCANCIPA",330032,"PLUS MAS ENERGY S.A.S (21901)",450223,"TOCANCIPA"]
["999999 > PLUS MAS ENERGY S.A.S (21901): BACK OFFICE",330032,"PLUS MAS ENERGY S.A.S (21901)",999999,"BACK OFFICE"]
["450220 > DISTRIBUIDORA DE COMBUSTIBLES DISCOM S.A.S. (23465) - Planta: PLANTA CHEVRON MAMONAL",330033,"DISTRIBUIDORA DE COMBUSTIBLES DISCOM S.A.S. (23465)",450220,"PLANTA CHEVRON MAMONAL"]
["450307 > DISTRIBUIDORA DE COMBUSTIBLES DISCOM S.A.S. (23465) - Planta: TOCANCIPA",330033,"DISTRIBUIDORA DE COMBUSTIBLES DISCOM S.A.S. (23465)",450307,"TOCANCIPA"]
["450311 > DISTRIBUIDORA DE COMBUSTIBLES DISCOM S.A.S. (23465) - Planta: PLANTA CONJUNTA MAMONAL",330033,"DISTRIBUIDORA DE COMBUSTIBLES DISCOM S.A.S. (23465)",450311,"PLANTA CONJUNTA MAMONAL"]
["999999 > DISTRIBUIDORA DE COMBUSTIBLES DISCOM S.A.S. (23465): BACK OFFICE",330033,"DISTRIBUIDORA DE COMBUSTIBLES DISCOM S.A.S. (23465)",999999,"BACK OFFICE"]